[Event "Titled Tuesday Blitz March 28 Early 2023"]
[White "Tokhirjonova, Gulrukhbegim"]
[Black "Melikhov, Evgeny V."]
[WhiteFideId "14203626"]
[BlackFideId "4122046"]
[WhiteElo "2268"]
[BlackElo "2158"]
[Result "1-0"]
[Round "08"]
[TimeControl "180+2"]
[Date "2023.03.28"]
[WhiteClock "0:00:30"]
[BlackClock "0:00:01"]

1. e4 {[%clk 0:03:00]}  e5 {[%clk 0:02:56]} 2. Nf3 {[%clk 0:02:59]}  Nc6 {[%clk 0:02:54]} 3. Bb5 {[%clk 0:02:59]}  a6 {[%clk 0:02:53]} 4. Ba4 {[%clk 0:02:59]}  Nf6 {[%clk 0:02:53]} 5. O-O {[%clk 0:02:59]}  Nxe4 {[%clk 0:02:52]} 6. d4 {[%clk 0:02:59]}  b5 {[%clk 0:02:52]} 7. Bb3 {[%clk 0:02:59]}  d5 {[%clk 0:02:52]} 8. dxe5 {[%clk 0:03:00]}  Be6 {[%clk 0:02:52]} 9. c3 {[%clk 0:03:00]}  Bc5 {[%clk 0:02:51]} 10. Qe2 {[%clk 0:02:56]}  O-O {[%clk 0:02:48]} 11. Nbd2 {[%clk 0:02:54]}  Bf5 {[%clk 0:02:42]} 12. Nxe4 {[%clk 0:02:44]}  Bxe4 {[%clk 0:02:38]} 13. Ng5 {[%clk 0:02:43]}  Bf5 {[%clk 0:02:19]} 14. Rd1 {[%clk 0:02:35]}  Ne7 {[%clk 0:02:07]} 15. Be3 {[%clk 0:02:12]}  Bxe3 {[%clk 0:02:05]} 16. Qxe3 {[%clk 0:02:11]}  c6 {[%clk 0:02:02]} 17. h3 {[%clk 0:02:02]}  Qd7 {[%clk 0:01:55]} 18. Re1 {[%clk 0:01:58]}  Rae8 {[%clk 0:01:52]} 19. Rad1 {[%clk 0:01:56]}  f6 {[%clk 0:01:31]} 20. exf6 {[%clk 0:01:53]}  Rxf6 {[%clk 0:01:31]} 21. f4 {[%clk 0:01:31]}  h6 {[%clk 0:01:23]} 22. Nf3 {[%clk 0:01:29]}  Re6 {[%clk 0:01:20]} 23. Qd4 {[%clk 0:01:27]}  Ng6 {[%clk 0:01:17]} 24. Rxe6 {[%clk 0:01:22]}  Qxe6 {[%clk 0:01:15]} 25. Re1 {[%clk 0:01:18]}  Be4 {[%clk 0:01:13]} 26. Ne5 {[%clk 0:01:14]}  Nxe5 {[%clk 0:00:10]} 27. Rxe4 {[%clk 0:01:12]}  Nf3+ {[%clk 0:00:03]} 28. gxf3 {[%clk 0:01:12]}  Qg6+ {[%clk 0:00:03]} 29. Kf2 {[%clk 0:01:11]}  Kh8 {[%clk 0:00:03]} 30. Rxe8+ {[%clk 0:01:10]}  Qxe8 {[%clk 0:00:03]} 31. Qe5 {[%clk 0:01:10]}  Qd8 {[%clk 0:00:03]} 32. f5 {[%clk 0:01:07]}  Qh4+ {[%clk 0:00:03]} 33. Qg3 {[%clk 0:01:07]}  Qf6 {[%clk 0:00:03]} 34. Bc2 {[%clk 0:01:05]}  d4 {[%clk 0:00:03]} 35. f4 {[%clk 0:00:56]}  dxc3 {[%clk 0:00:02]} 36. Qxc3 {[%clk 0:00:57]}  Qh4+ {[%clk 0:00:02]} 37. Qg3 {[%clk 0:00:49]}  Qf6 {[%clk 0:00:02]} 38. Qd3 {[%clk 0:00:36]}  Qh4+ {[%clk 0:00:02]} 39. Ke2 {[%clk 0:00:32]}  Qxf4 {[%clk 0:00:01]} 40. f6 {[%clk 0:00:32]}  g6 {[%clk 0:00:01]} 41. Qd8+ {[%clk 0:00:30]}  Kh7 {[%clk 0:00:01]} 42. Qe7+ {[%clk 0:00:30]} 1-0


[Site "https://www.chess.com"]

[Event "Titled Tuesday Blitz March 28 Early 2023"]
[White "Turzo, Attila"]
[Black "Topalov, Aleksandar"]
[WhiteFideId "704954"]
[BlackFideId "925659"]
[WhiteElo "2507"]
[BlackElo "2151"]
[Result "1-0"]
[Round "08"]
[TimeControl "180+2"]
[Date "2023.03.28"]
[WhiteClock "0:00:32"]
[BlackClock "0:00:02"]

1. e4 {[%clk 0:03:00]}  e6 {[%clk 0:02:54]} 2. d4 {[%clk 0:03:00]}  d5 {[%clk 0:02:54]} 3. Bd3 {[%clk 0:03:01]}  dxe4 {[%clk 0:02:52]} 4. Bxe4 {[%clk 0:03:01]}  Nf6 {[%clk 0:02:51]} 5. Bf3 {[%clk 0:03:01]}  c5 {[%clk 0:02:51]} 6. Ne2 {[%clk 0:02:59]}  Nc6 {[%clk 0:02:51]} 7. c3 {[%clk 0:02:49]}  e5 {[%clk 0:02:36]} 8. Bxc6+ {[%clk 0:02:45]}  bxc6 {[%clk 0:02:35]} 9. dxe5 {[%clk 0:02:42]}  Qxd1+ {[%clk 0:02:35]} 10. Kxd1 {[%clk 0:02:43]}  Ng4 {[%clk 0:02:35]} 11. Be3 {[%clk 0:02:39]}  Nxe3+ {[%clk 0:02:32]} 12. fxe3 {[%clk 0:02:39]}  Bf5 {[%clk 0:02:30]} 13. Ng3 {[%clk 0:02:28]}  O-O-O+ {[%clk 0:02:28]} 14. Ke2 {[%clk 0:02:19]}  Bg6 {[%clk 0:02:25]} 15. Nd2 {[%clk 0:02:16]}  Rd5 {[%clk 0:02:10]} 16. Nf3 {[%clk 0:02:09]}  Be7 {[%clk 0:02:07]} 17. e4 {[%clk 0:02:05]}  Rd7 {[%clk 0:01:59]} 18. Rad1 {[%clk 0:01:57]}  Rhd8 {[%clk 0:01:49]} 19. Rxd7 {[%clk 0:01:53]}  Rxd7 {[%clk 0:01:49]} 20. Nf5 {[%clk 0:01:52]}  Bf8 {[%clk 0:01:47]} 21. g4 {[%clk 0:01:47]}  Rb7 {[%clk 0:01:45]} 22. b3 {[%clk 0:01:44]}  c4 {[%clk 0:01:45]} 23. Rb1 {[%clk 0:01:30]}  a5 {[%clk 0:01:39]} 24. Ke3 {[%clk 0:01:28]}  c5 {[%clk 0:01:38]} 25. Nd2 {[%clk 0:01:18]}  cxb3 {[%clk 0:01:31]} 26. Rxb3 {[%clk 0:01:14]}  Rd7 {[%clk 0:00:49]} 27. Rb5 {[%clk 0:01:05]}  h5 {[%clk 0:00:42]} 28. h3 {[%clk 0:01:05]}  hxg4 {[%clk 0:00:41]} 29. hxg4 {[%clk 0:01:06]}  Ra7 {[%clk 0:00:25]} 30. a4 {[%clk 0:01:03]}  Bh7 {[%clk 0:00:18]} 31. Nc4 {[%clk 0:01:02]}  Kd7 {[%clk 0:00:13]} 32. Rxa5 {[%clk 0:00:56]}  Rb7 {[%clk 0:00:13]} 33. Rb5 {[%clk 0:00:56]}  Ra7 {[%clk 0:00:14]} 34. a5 {[%clk 0:00:56]}  g6 {[%clk 0:00:11]} 35. Nfd6 {[%clk 0:00:53]}  f6 {[%clk 0:00:11]} 36. Rb7+ {[%clk 0:00:46]}  Rxb7 {[%clk 0:00:11]} 37. Nxb7 {[%clk 0:00:47]}  fxe5 {[%clk 0:00:09]} 38. Nxe5+ {[%clk 0:00:45]}  Kc7 {[%clk 0:00:09]} 39. a6 {[%clk 0:00:43]}  Bg7 {[%clk 0:00:06]} 40. Nc4 {[%clk 0:00:36]}  g5 {[%clk 0:00:05]} 41. Nxc5 {[%clk 0:00:35]}  Kb8 {[%clk 0:00:02]} 42. Ne6 {[%clk 0:00:32]} 1-0


[Site "https://www.chess.com"]

[Event "Titled Tuesday Blitz March 28 Early 2023"]
[White "Mika, Tomasz"]
[Black "Sztokbant, Bernardo Vainzoff"]
[WhiteFideId "1132970"]
[BlackFideId "2115956"]
[WhiteElo "2179"]
[BlackElo "2222"]
[Result "1-0"]
[Round "08"]
[TimeControl "180+2"]
[Date "2023.03.28"]
[WhiteClock "0:00:09"]
[BlackClock "0:00:02"]

1. Nf3 {[%clk 0:03:00]}  g6 {[%clk 0:02:54]} 2. e4 {[%clk 0:02:55]}  Bg7 {[%clk 0:02:55]} 3. d4 {[%clk 0:02:55]}  d6 {[%clk 0:02:52]} 4. Be3 {[%clk 0:02:52]}  Nf6 {[%clk 0:02:53]} 5. Bd3 {[%clk 0:02:51]}  O-O {[%clk 0:02:45]} 6. h3 {[%clk 0:02:42]}  Nc6 {[%clk 0:02:39]} 7. c3 {[%clk 0:02:38]}  e5 {[%clk 0:02:35]} 8. d5 {[%clk 0:02:38]}  Ne7 {[%clk 0:02:34]} 9. g4 {[%clk 0:02:34]}  c6 {[%clk 0:02:32]} 10. c4 {[%clk 0:02:32]}  b5 {[%clk 0:02:24]} 11. b3 {[%clk 0:01:56]}  Bb7 {[%clk 0:02:19]} 12. g5 {[%clk 0:01:47]}  Nh5 {[%clk 0:01:54]} 13. dxc6 {[%clk 0:01:46]}  Nxc6 {[%clk 0:01:53]} 14. cxb5 {[%clk 0:01:46]}  Nb4 {[%clk 0:01:54]} 15. Nc3 {[%clk 0:01:27]}  Nf4 {[%clk 0:01:53]} 16. Bxf4 {[%clk 0:01:20]}  exf4 {[%clk 0:01:53]} 17. Rc1 {[%clk 0:01:13]}  Rc8 {[%clk 0:01:47]} 18. Qd2 {[%clk 0:01:06]}  Qc7 {[%clk 0:01:37]} 19. Ne2 {[%clk 0:01:00]}  Qxc1+ {[%clk 0:01:34]} 20. Nxc1 {[%clk 0:00:48]}  Rxc1+ {[%clk 0:01:33]} 21. Ke2 {[%clk 0:00:35]}  Nxd3 {[%clk 0:01:07]} 22. Rxc1 {[%clk 0:00:32]}  Nxc1+ {[%clk 0:01:07]} 23. Qxc1 {[%clk 0:00:32]}  Bxe4 {[%clk 0:00:37]} 24. Qxf4 {[%clk 0:00:31]}  d5 {[%clk 0:00:32]} 25. Ne5 {[%clk 0:00:26]}  Bf5 {[%clk 0:00:19]} 26. Ng4 {[%clk 0:00:17]}  Rc8 {[%clk 0:00:13]} 27. Nf6+ {[%clk 0:00:16]}  Kh8 {[%clk 0:00:11]} 28. Qd4 {[%clk 0:00:15]}  Bxh3 {[%clk 0:00:07]} 29. Qxa7 {[%clk 0:00:13]}  Be6 {[%clk 0:00:05]} 30. b6 {[%clk 0:00:09]}  Rc2+ {[%clk 0:00:02]} 31. Kd1 {[%clk 0:00:09]} 1-0


[Site "https://www.chess.com"]

[Event "Titled Tuesday Blitz March 28 Early 2023"]
[White "Kubatko, Ivan"]
[Black "Mrudul Dehankar"]
[WhiteFideId "24111473"]
[BlackFideId "25096990"]
[WhiteElo "2285"]
[BlackElo "2139"]
[Result "0-1"]
[Round "08"]
[TimeControl "180+2"]
[Date "2023.03.28"]
[WhiteClock "0:00:02"]
[BlackClock "0:00:04"]

1. e4 {[%clk 0:02:58]}  c6 {[%clk 0:02:58]} 2. d4 {[%clk 0:02:51]}  d5 {[%clk 0:02:54]} 3. exd5 {[%clk 0:02:52]}  cxd5 {[%clk 0:02:54]} 4. c4 {[%clk 0:02:52]}  Nf6 {[%clk 0:02:54]} 5. Nc3 {[%clk 0:02:53]}  Nc6 {[%clk 0:02:54]} 6. Bg5 {[%clk 0:02:53]}  Be6 {[%clk 0:02:52]} 7. a3 {[%clk 0:02:48]}  h6 {[%clk 0:02:41]} 8. Bxf6 {[%clk 0:02:39]}  exf6 {[%clk 0:02:30]} 9. Nf3 {[%clk 0:02:20]}  Be7 {[%clk 0:02:26]} 10. b4 {[%clk 0:02:13]}  O-O {[%clk 0:02:19]} 11. Rc1 {[%clk 0:01:55]}  Rc8 {[%clk 0:02:12]} 12. Be2 {[%clk 0:01:32]}  Qd7 {[%clk 0:01:34]} 13. O-O {[%clk 0:01:22]}  Rfd8 {[%clk 0:01:29]} 14. cxd5 {[%clk 0:01:02]}  Bxd5 {[%clk 0:01:29]} 15. Nxd5 {[%clk 0:01:03]}  Qxd5 {[%clk 0:01:29]} 16. Bc4 {[%clk 0:01:02]}  Qh5 {[%clk 0:01:27]} 17. Qb3 {[%clk 0:00:56]}  Bd6 {[%clk 0:01:10]} 18. h3 {[%clk 0:00:55]}  Rc7 {[%clk 0:01:06]} 19. Rfe1 {[%clk 0:00:44]}  Rcd7 {[%clk 0:01:02]} 20. Re4 {[%clk 0:00:32]}  Bf8 {[%clk 0:00:29]} 21. d5 {[%clk 0:00:22]}  Ne5 {[%clk 0:00:20]} 22. Nxe5 {[%clk 0:00:20]}  fxe5 {[%clk 0:00:20]} 23. Rce1 {[%clk 0:00:19]}  Bd6 {[%clk 0:00:20]} 24. Be2 {[%clk 0:00:17]}  Qg6 {[%clk 0:00:19]} 25. Bb5 {[%clk 0:00:13]}  Rc7 {[%clk 0:00:18]} 26. Rg4 {[%clk 0:00:12]}  Qf6 {[%clk 0:00:18]} 27. Bd3 {[%clk 0:00:09]}  Rdc8 {[%clk 0:00:18]} 28. Qd1 {[%clk 0:00:08]}  Rc3 {[%clk 0:00:17]} 29. Qe2 {[%clk 0:00:09]}  Rxa3 {[%clk 0:00:15]} 30. Qe4 {[%clk 0:00:07]}  g6 {[%clk 0:00:15]} 31. h4 {[%clk 0:00:07]}  Rcc3 {[%clk 0:00:14]} 32. Rg3 {[%clk 0:00:07]}  Kf8 {[%clk 0:00:13]} 33. Rf3 {[%clk 0:00:06]}  Qe7 {[%clk 0:00:13]} 34. Qxg6 {[%clk 0:00:06]}  Rxd3 {[%clk 0:00:11]} 35. Qxh6+ {[%clk 0:00:06]}  Ke8 {[%clk 0:00:10]} 36. Rxd3 {[%clk 0:00:03]}  Rxd3 {[%clk 0:00:11]} 37. Rc1 {[%clk 0:00:03]}  Kd7 {[%clk 0:00:09]} 38. Qh8 {[%clk 0:00:03]}  Qe8 {[%clk 0:00:08]} 39. Qh7 {[%clk 0:00:02]}  Rxd5 {[%clk 0:00:08]} 40. Qf5+ {[%clk 0:00:03]}  Qe6 {[%clk 0:00:09]} 41. Qh7 {[%clk 0:00:02]}  Bc7 {[%clk 0:00:09]} 42. Qg8 {[%clk 0:00:02]}  Rd4 {[%clk 0:00:09]} 43. h5 {[%clk 0:00:02]}  Qe8 {[%clk 0:00:08]} 44. Qg7 {[%clk 0:00:03]}  Rf4 {[%clk 0:00:07]} 45. h6 {[%clk 0:00:03]}  Rh4 {[%clk 0:00:05]} 46. Rd1+ {[%clk 0:00:03]}  Bd6 {[%clk 0:00:05]} 47. b5 {[%clk 0:00:03]}  Qe6 {[%clk 0:00:04]} 48. g3 {[%clk 0:00:03]}  Rxh6 {[%clk 0:00:03]} 49. b6 {[%clk 0:00:03]}  Rg6 {[%clk 0:00:04]} 50. Qh7 {[%clk 0:00:02]}  axb6 {[%clk 0:00:03]} 51. Rc1 {[%clk 0:00:02]}  Bc5 {[%clk 0:00:03]} 52. Qh8 {[%clk 0:00:02]}  Qe8 {[%clk 0:00:03]} 53. Qh3+ {[%clk 0:00:02]}  Kc6 {[%clk 0:00:03]} 54. Qg2+ {[%clk 0:00:02]}  Kc7 {[%clk 0:00:03]} 55. Qd5 {[%clk 0:00:02]}  Qc6 {[%clk 0:00:04]} 56. Qxf7+ {[%clk 0:00:02]}  Kc8 {[%clk 0:00:04]} 0-1


[Site "https://www.chess.com"]

[Event "Titled Tuesday Blitz March 28 Early 2023"]
[White "BeReal24"]
[Black "Sousa, Andre Ventura"]
[BlackFideId "1917617"]
[WhiteElo "2331"]
[BlackElo "2348"]
[Result "0-1"]
[Round "08"]
[TimeControl "180+2"]
[Date "2023.03.28"]
[WhiteClock "0:00:15"]
[BlackClock "0:00:29"]

1. e4 {[%clk 0:03:00]}  e5 {[%clk 0:02:59]} 2. Nf3 {[%clk 0:03:00]}  Nc6 {[%clk 0:03:00]} 3. Bb5 {[%clk 0:03:00]}  Nf6 {[%clk 0:02:59]} 4. O-O {[%clk 0:02:59]}  Nxe4 {[%clk 0:03:00]} 5. Re1 {[%clk 0:02:56]}  Nd6 {[%clk 0:03:00]} 6. Nxe5 {[%clk 0:02:56]}  Be7 {[%clk 0:03:00]} 7. Bf1 {[%clk 0:02:56]}  O-O {[%clk 0:02:57]} 8. d4 {[%clk 0:02:50]}  Nxe5 {[%clk 0:02:56]} 9. dxe5 {[%clk 0:02:48]}  Nf5 {[%clk 0:02:53]} 10. Nc3 {[%clk 0:02:42]}  d6 {[%clk 0:02:53]} 11. Bf4 {[%clk 0:02:38]}  Be6 {[%clk 0:02:46]} 12. Nd5 {[%clk 0:02:28]}  dxe5 {[%clk 0:02:40]} 13. Nxe7+ {[%clk 0:02:28]}  Qxe7 {[%clk 0:02:39]} 14. Bxe5 {[%clk 0:02:26]}  Rad8 {[%clk 0:02:36]} 15. Qf3 {[%clk 0:02:21]}  c6 {[%clk 0:02:23]} 16. Bd3 {[%clk 0:02:20]}  Qg5 {[%clk 0:02:20]} 17. Bf4 {[%clk 0:02:15]}  Qg6 {[%clk 0:02:16]} 18. Qh3 {[%clk 0:01:48]}  Rfe8 {[%clk 0:01:46]} 19. Re5 {[%clk 0:01:34]}  Nd4 {[%clk 0:01:32]} 20. Qe3 {[%clk 0:00:59]}  Nxc2 {[%clk 0:01:18]} 21. Bxg6 {[%clk 0:00:54]}  Nxe3 {[%clk 0:01:18]} 22. Bxh7+ {[%clk 0:00:54]}  Kxh7 {[%clk 0:01:18]} 23. Rxe3 {[%clk 0:00:55]}  Rd5 {[%clk 0:01:04]} 24. h3 {[%clk 0:00:51]}  Red8 {[%clk 0:01:04]} 25. Rae1 {[%clk 0:00:49]}  Rf5 {[%clk 0:00:59]} 26. Be5 {[%clk 0:00:48]}  Bxa2 {[%clk 0:00:57]} 27. Bc3 {[%clk 0:00:47]}  Be6 {[%clk 0:00:56]} 28. Ra1 {[%clk 0:00:43]}  a6 {[%clk 0:00:56]} 29. g3 {[%clk 0:00:37]}  Rfd5 {[%clk 0:00:56]} 30. Rae1 {[%clk 0:00:35]}  Bxh3 {[%clk 0:00:53]} 31. Re7 {[%clk 0:00:34]}  R8d7 {[%clk 0:00:52]} 32. Kh2 {[%clk 0:00:32]}  Be6 {[%clk 0:00:50]} 33. Re8 {[%clk 0:00:29]}  Rd8 {[%clk 0:00:50]} 34. Re7 {[%clk 0:00:29]}  R5d7 {[%clk 0:00:48]} 35. Rxd7 {[%clk 0:00:29]}  Rxd7 {[%clk 0:00:49]} 36. Re4 {[%clk 0:00:28]}  Rd1 {[%clk 0:00:43]} 37. Rh4+ {[%clk 0:00:26]}  Kg8 {[%clk 0:00:44]} 38. f3 {[%clk 0:00:25]}  Bd5 {[%clk 0:00:42]} 39. Rf4 {[%clk 0:00:24]}  Rd3 {[%clk 0:00:39]} 40. Kg2 {[%clk 0:00:23]}  g5 {[%clk 0:00:38]} 41. Rf5 {[%clk 0:00:22]}  g4 {[%clk 0:00:33]} 42. Rg5+ {[%clk 0:00:16]}  Kf8 {[%clk 0:00:32]} 43. Bb4+ {[%clk 0:00:12]}  Ke8 {[%clk 0:00:32]} 44. Rg8+ {[%clk 0:00:12]}  Kd7 {[%clk 0:00:33]} 45. Kf2 {[%clk 0:00:12]}  gxf3 {[%clk 0:00:33]} 46. Bc3 {[%clk 0:00:12]}  Kc7 {[%clk 0:00:30]} 47. Rg5 {[%clk 0:00:10]}  Kb6 {[%clk 0:00:28]} 48. Rf5 {[%clk 0:00:09]}  Kb5 {[%clk 0:00:28]} 49. Rf4 {[%clk 0:00:10]}  a5 {[%clk 0:00:28]} 50. g4 {[%clk 0:00:09]}  b6 {[%clk 0:00:26]} 51. g5 {[%clk 0:00:09]}  Rd1 {[%clk 0:00:23]} 52. Kg3 {[%clk 0:00:09]}  Rg1+ {[%clk 0:00:23]} 53. Kf2 {[%clk 0:00:09]}  Rg2+ {[%clk 0:00:23]} 54. Kf1 {[%clk 0:00:10]}  Rxg5 {[%clk 0:00:24]} 55. Rf6 {[%clk 0:00:10]}  Rg2 {[%clk 0:00:23]} 56. Rf4 {[%clk 0:00:10]}  Re2 {[%clk 0:00:23]} 57. Rf6 {[%clk 0:00:10]}  Re4 {[%clk 0:00:23]} 58. Rh6 {[%clk 0:00:10]}  Ka4 {[%clk 0:00:21]} 59. Rh8 {[%clk 0:00:10]}  Kb3 {[%clk 0:00:21]} 60. Rb8 {[%clk 0:00:10]}  b5 {[%clk 0:00:20]} 61. Ra8 {[%clk 0:00:11]}  b4 {[%clk 0:00:20]} 62. Ra7 {[%clk 0:00:12]}  bxc3 {[%clk 0:00:20]} 63. bxc3 {[%clk 0:00:12]}  Kxc3 {[%clk 0:00:21]} 64. Rxa5 {[%clk 0:00:12]}  Rb4 {[%clk 0:00:20]} 65. Ra3+ {[%clk 0:00:13]}  Rb3 {[%clk 0:00:21]} 66. Ra8 {[%clk 0:00:13]}  c5 {[%clk 0:00:21]} 67. Rd8 {[%clk 0:00:13]}  Bc4+ {[%clk 0:00:22]} 68. Kf2 {[%clk 0:00:13]}  Rb2+ {[%clk 0:00:23]} 69. Kxf3 {[%clk 0:00:13]}  Bd3 {[%clk 0:00:23]} 70. Kf4 {[%clk 0:00:14]}  c4 {[%clk 0:00:24]} 71. Ke3 {[%clk 0:00:14]}  Re2+ {[%clk 0:00:25]} 72. Kf4 {[%clk 0:00:13]}  Kd2 {[%clk 0:00:26]} 73. Kf3 {[%clk 0:00:12]}  c3 {[%clk 0:00:27]} 74. Rc8 {[%clk 0:00:12]}  c2 {[%clk 0:00:27]} 75. Rxc2+ {[%clk 0:00:12]}  Kxc2 {[%clk 0:00:28]} 76. Kf4 {[%clk 0:00:13]}  Re8 {[%clk 0:00:28]} 77. Kg5 {[%clk 0:00:13]}  Bh7 {[%clk 0:00:29]} 78. Kf6 {[%clk 0:00:14]}  Bg6 {[%clk 0:00:29]} 79. Kg7 {[%clk 0:00:14]}  Re6 {[%clk 0:00:29]} 80. Kh6 {[%clk 0:00:12]}  Re5 {[%clk 0:00:26]} 81. Kg7 {[%clk 0:00:12]}  Ra5 {[%clk 0:00:27]} 82. Kf6 {[%clk 0:00:12]}  Kd2 {[%clk 0:00:26]} 83. Kg7 {[%clk 0:00:11]}  Bh7 {[%clk 0:00:26]} 84. Kf6 {[%clk 0:00:12]}  Ke2 {[%clk 0:00:26]} 85. Kg7 {[%clk 0:00:13]}  f5 {[%clk 0:00:27]} 86. Kf6 {[%clk 0:00:14]}  f4 {[%clk 0:00:28]} 87. Kg7 {[%clk 0:00:14]}  f3 {[%clk 0:00:29]} 88. Kxh7 {[%clk 0:00:15]}  f2 {[%clk 0:00:30]} 89. Kg6 {[%clk 0:00:15]}  f1=Q {[%clk 0:00:29]} 0-1


[Site "https://www.chess.com"]

[Event "Titled Tuesday Blitz March 28 Early 2023"]
[White "Zavortink, Matt"]
[Black "Khamdamova, Afruza"]
[WhiteFideId "2034263"]
[BlackFideId "14210444"]
[WhiteElo "2305"]
[BlackElo "2210"]
[Result "1/2-1/2"]
[Round "08"]
[TimeControl "180+2"]
[Date "2023.03.28"]
[WhiteClock "0:00:18"]
[BlackClock "0:00:17"]

1. c4 {[%clk 0:03:00]}  Nf6 {[%clk 0:02:59]} 2. Nc3 {[%clk 0:03:01]}  e6 {[%clk 0:02:59]} 3. e4 {[%clk 0:03:00]}  Bc5 {[%clk 0:02:58]} 4. d4 {[%clk 0:02:59]}  Bb4 {[%clk 0:02:59]} 5. e5 {[%clk 0:02:58]}  Ne4 {[%clk 0:02:59]} 6. Qf3 {[%clk 0:02:56]}  d5 {[%clk 0:02:48]} 7. a3 {[%clk 0:02:16]}  Bxc3+ {[%clk 0:02:46]} 8. bxc3 {[%clk 0:02:16]}  O-O {[%clk 0:02:46]} 9. Nh3 {[%clk 0:02:00]}  c5 {[%clk 0:02:42]} 10. Bd3 {[%clk 0:01:52]}  cxd4 {[%clk 0:02:39]} 11. O-O {[%clk 0:01:46]}  dxc3 {[%clk 0:02:34]} 12. Rd1 {[%clk 0:01:37]}  Qh4 {[%clk 0:02:17]} 13. Bf4 {[%clk 0:01:12]}  Nc6 {[%clk 0:02:08]} 14. Rac1 {[%clk 0:00:58]}  g5 {[%clk 0:01:55]} 15. Bg3 {[%clk 0:00:44]}  Nxg3 {[%clk 0:01:50]} 16. hxg3 {[%clk 0:00:43]}  Qh6 {[%clk 0:01:38]} 17. cxd5 {[%clk 0:00:35]}  Nxe5 {[%clk 0:01:35]} 18. Qe4 {[%clk 0:00:31]}  Nxd3 {[%clk 0:01:34]} 19. Rxd3 {[%clk 0:00:27]}  exd5 {[%clk 0:01:34]} 20. Qxd5 {[%clk 0:00:26]}  Bxh3 {[%clk 0:01:34]} 21. gxh3 {[%clk 0:00:25]}  g4 {[%clk 0:01:28]} 22. Rdxc3 {[%clk 0:00:21]}  gxh3 {[%clk 0:01:27]} 23. Qxb7 {[%clk 0:00:19]}  h2+ {[%clk 0:01:25]} 24. Kh1 {[%clk 0:00:19]}  Rab8 {[%clk 0:01:07]} 25. Qg2 {[%clk 0:00:16]}  Rb5 {[%clk 0:01:05]} 26. Rc5 {[%clk 0:00:15]}  Rxc5 {[%clk 0:00:57]} 27. Rxc5 {[%clk 0:00:15]}  Rb8 {[%clk 0:00:57]} 28. Qxh2 {[%clk 0:00:13]}  Rb1+ {[%clk 0:00:55]} 29. Kg2 {[%clk 0:00:14]}  Qe6 {[%clk 0:00:44]} 30. Qh5 {[%clk 0:00:12]}  Qe4+ {[%clk 0:00:44]} 31. f3 {[%clk 0:00:11]}  Qe2+ {[%clk 0:00:41]} 32. Kh3 {[%clk 0:00:11]}  Rh1+ {[%clk 0:00:41]} 33. Kg4 {[%clk 0:00:11]}  Qe6+ {[%clk 0:00:36]} 34. Qf5 {[%clk 0:00:10]}  h5+ {[%clk 0:00:34]} 35. Kf4 {[%clk 0:00:10]}  Qd6+ {[%clk 0:00:34]} 36. Qe5 {[%clk 0:00:09]}  Qd2+ {[%clk 0:00:34]} 37. Qe3 {[%clk 0:00:09]}  Qd7 {[%clk 0:00:29]} 38. Qe5 {[%clk 0:00:07]}  Qd2+ {[%clk 0:00:16]} 39. Qe3 {[%clk 0:00:07]}  Qd6+ {[%clk 0:00:15]} 40. Qe5 {[%clk 0:00:07]}  Qxe5+ {[%clk 0:00:13]} 41. Rxe5 {[%clk 0:00:07]}  Ra1 {[%clk 0:00:13]} 42. Ra5 {[%clk 0:00:07]}  Kg7 {[%clk 0:00:13]} 43. Rxa7 {[%clk 0:00:07]}  Kg6 {[%clk 0:00:13]} 44. a4 {[%clk 0:00:07]}  f6 {[%clk 0:00:14]} 45. a5 {[%clk 0:00:06]}  Ra4+ {[%clk 0:00:14]} 46. Ke3 {[%clk 0:00:07]}  Kf5 {[%clk 0:00:14]} 47. a6 {[%clk 0:00:06]}  Ra3+ {[%clk 0:00:15]} 48. Kf2 {[%clk 0:00:06]}  h4 {[%clk 0:00:13]} 49. gxh4 {[%clk 0:00:06]}  Kf4 {[%clk 0:00:14]} 50. Ra8 {[%clk 0:00:03]}  Ra2+ {[%clk 0:00:14]} 51. Ke1 {[%clk 0:00:04]}  Kxf3 {[%clk 0:00:13]} 52. a7 {[%clk 0:00:04]}  f5 {[%clk 0:00:13]} 53. Rf8 {[%clk 0:00:02]}  Rxa7 {[%clk 0:00:13]} 54. Rxf5+ {[%clk 0:00:02]}  Ke3 {[%clk 0:00:14]} 55. Re5+ {[%clk 0:00:02]}  Kf4 {[%clk 0:00:14]} 56. Rb5 {[%clk 0:00:02]}  Ra2 {[%clk 0:00:13]} 57. Rb4+ {[%clk 0:00:01]}  Ke3 {[%clk 0:00:13]} 58. Kd1 {[%clk 0:00:02]}  Kd3 {[%clk 0:00:14]} 59. Rb3+ {[%clk 0:00:02]}  Kc4 {[%clk 0:00:14]} 60. Rb8 {[%clk 0:00:03]}  Kd3 {[%clk 0:00:14]} 61. Rd8+ {[%clk 0:00:03]}  Ke3 {[%clk 0:00:15]} 62. Re8+ {[%clk 0:00:04]}  Kf4 {[%clk 0:00:14]} 63. Rf8+ {[%clk 0:00:04]}  Kg4 {[%clk 0:00:14]} 64. Rh8 {[%clk 0:00:05]}  Rh2 {[%clk 0:00:14]} 65. Ke1 {[%clk 0:00:05]}  Kf3 {[%clk 0:00:14]} 66. Rf8+ {[%clk 0:00:04]}  Ke3 {[%clk 0:00:14]} 67. Re8+ {[%clk 0:00:05]}  Kf4 {[%clk 0:00:13]} 68. Rf8+ {[%clk 0:00:06]}  Kg4 {[%clk 0:00:14]} 69. Rg8+ {[%clk 0:00:06]}  Kf5 {[%clk 0:00:13]} 70. Rh8 {[%clk 0:00:06]}  Kg6 {[%clk 0:00:14]} 71. Kf1 {[%clk 0:00:06]}  Kg7 {[%clk 0:00:14]} 72. Rh5 {[%clk 0:00:07]}  Kg6 {[%clk 0:00:14]} 73. Rg5+ {[%clk 0:00:07]}  Kf6 {[%clk 0:00:15]} 74. Rg4 {[%clk 0:00:07]}  Kf5 {[%clk 0:00:15]} 75. Ra4 {[%clk 0:00:07]}  Rb2 {[%clk 0:00:15]} 76. Kg1 {[%clk 0:00:07]}  Ke5 {[%clk 0:00:14]} 77. Kf1 {[%clk 0:00:07]}  Kf5 {[%clk 0:00:14]} 78. Ke1 {[%clk 0:00:08]}  Kg6 {[%clk 0:00:15]} 79. Kf1 {[%clk 0:00:08]}  Kh5 {[%clk 0:00:15]} 80. Ke1 {[%clk 0:00:08]}  Rh2 {[%clk 0:00:15]} 81. Kf1 {[%clk 0:00:08]}  Rb2 {[%clk 0:00:15]} 82. Kg1 {[%clk 0:00:08]}  Rc2 {[%clk 0:00:15]} 83. Kf1 {[%clk 0:00:09]}  Kg6 {[%clk 0:00:15]} 84. Ke1 {[%clk 0:00:09]}  Kf5 {[%clk 0:00:15]} 85. Kd1 {[%clk 0:00:09]}  Rh2 {[%clk 0:00:16]} 86. Ke1 {[%clk 0:00:09]}  Ke5 {[%clk 0:00:15]} 87. Kf1 {[%clk 0:00:09]}  Kd5 {[%clk 0:00:16]} 88. Kg1 {[%clk 0:00:09]}  Rb2 {[%clk 0:00:16]} 89. Rg4 {[%clk 0:00:09]}  Ke5 {[%clk 0:00:17]} 90. Rg2 {[%clk 0:00:09]}  Rxg2+ {[%clk 0:00:14]} 91. Kxg2 {[%clk 0:00:10]}  Kf4 {[%clk 0:00:15]} 92. Kh3 {[%clk 0:00:10]}  Kf5 {[%clk 0:00:15]} 93. Kg3 {[%clk 0:00:11]}  Kg6 {[%clk 0:00:15]} 94. Kg4 {[%clk 0:00:12]}  Kh6 {[%clk 0:00:15]} 95. h5 {[%clk 0:00:12]}  Kh7 {[%clk 0:00:16]} 96. Kg5 {[%clk 0:00:13]}  Kg7 {[%clk 0:00:16]} 97. Kf5 {[%clk 0:00:14]}  Kh6 {[%clk 0:00:17]} 98. Kg4 {[%clk 0:00:15]}  Kg7 {[%clk 0:00:17]} 99. Kg5 {[%clk 0:00:16]}  Kh7 {[%clk 0:00:17]} 100. h6 {[%clk 0:00:17]}  Kg8 {[%clk 0:00:17]} 101. Kg6 {[%clk 0:00:17]}  Kh8 {[%clk 0:00:17]} 102. h7 {[%clk 0:00:18]} 1/2-1/2


[Site "https://www.chess.com"]